[Event "45th FIDE Olympiad 2024"]
[Site "Budapest"]
[Date "2024.09.16"]
[Round "6"]
[White "Shaker, Musab"]
[Black "Garcia Fuentes, Sergio Miguel"]
[Result "0-1"]
[WhiteElo "1757"]
[BlackElo "2114"]
[PlyCount "66"]
[EventDate "2024.09.05"]
[EventType "team-tourn"]
[EventCountry "HUN"]
[WhiteTeam "Bahrain"]
[BlackTeam "Guatemala"]
[WhiteTeamCountry "BHN"]
[BlackTeamCountry "GUA"]
[TimeControl "40/5400+30:1800+30"]

1. d4 d5 2. c4 e6 3. Nc3 Nf6 4. cxd5 exd5 5. Bg5 c6 6. Qc2 Bd6 7. e3 O-O 8. Bd3 h6 9. Bh4 a5 10. Nf3 Re8 11. h3 g5 12. Bxg5 hxg5 13. Nxg5 Qe7 14. O-O-O Na6 15. Qe2 Nb4 16. Bb1 Ne4 17. Ncxe4 dxe4 18. Qh5 Bf5 19. Kd2 Bg6 20. Qg4 f5 21. Qh4 Kg7 22. Nf3 exf3 23. Qxe7+ Bxe7 24. gxf3 Bh4 25. Rh2 Rad8 26. Rg2 Kf6 27. Rdg1 Rg8 28. e4 Bf7 29. e5+ Ke6 30. a3 Nd5 31. Rg7 Bxf2 32. Bxf5+ Ke7 33. R1g2 Bxd4 {0-} 0-1

[Event "45th FIDE Olympiad 2024"]
[Site "Budapest"]
[Date "2024.09.16"]
[Round "6.1"]
[White "Ding, Liren"]
[Black "Le, Quang Liem"]
[Result "0-1"]
[ECO "A34"]
[WhiteElo "2736"]
[BlackElo "2741"]
[Annotator "TA"]
[PlyCount "124"]
[EventDate "2024.09.05"]
[EventType "team-tourn"]
[EventCountry "HUN"]
[SourceTitle "playchess.com"]
[Source "ChessBase"]
[SourceQuality "1"]
[WhiteTeam "China"]
[BlackTeam "Vietnam"]
[WhiteTeamCountry "CHN"]
[BlackTeamCountry "VIE"]
[TimeControl "40/5400+30:1800+30"]

{[%evp 34,124,23,36,7,7,7,6,22,20,22,22,12,9,63,6,1,-12,-10,-15,-19,-8,-6,-35,-33,-32,-25,-26,-22,-53,-53,-53,-53,-50,0,-60,-60,-74,-74,-77,-66,-74,-70,-74,-66,-73,-73,-77,-36,-36,-36,-36,-36,-66,-66,-147,-147,-147,-147,-467,-62,-467,-292,-602,-588,-3900,-3893,-3679,-3524,-2566,-2493,-3774,-3151,-29965,-29966,-29970,-29971,-29971,-29972,-29972,-29973,-29973,-29974,-29974,-29974,-29974,-29974,-29974,-29975,-29975,-29976,-29976,-29977]} 1. c4 {[%emt 0:00:06]} c5 {[%emt 0:00:37]} 2. Nf3 {[%emt 0:00:14]} Nc6 {[%emt 0:00:11]} 3. Nc3 {[%emt 0:00:12]} Nf6 {[%emt 0:00:32]} 4. g3 {[%emt 0:00:05]} d5 {[%emt 0:00:40]} 5. cxd5 {[%emt 0:00:15]} Nxd5 {[%emt 0:00:08]} 6. Bg2 {[%emt 0:00:02]} g6 {[%emt 0:03:53]} 7. h4 {[%emt 0:05:40] The modern move. A34: Symmetrical English: 2 Nc3, lines with ...d5.} Bg7 {[%emt 0:00:34]} 8. h5 {[%emt 0:00:05]} Bf5 {[%emt 0:04:51]} 9. h6 {[%emt 0:01:43]} Bf6 {[%emt 0:00:47]} 10. O-O {[%emt 0:00:08]} O-O {[%emt 0:03:43]} 11. Nh2 {[%emt 0:01:08]} Nb6 {[%emt 0:03:10]} 12. a4 {[%emt 0:21:17]} Na5 {[%emt 0:02:31]} 13. Ne4 {[%emt 0:04:50]} Bxe4 {[%emt 0:13:11]} 14. Bxe4 {[%emt 0:00:09]} c4 {[%emt 0:00:10]} 15. d3 {[%emt 0:05:44]} Rc8 {[%emt 0:01:09]} 16. Rb1 $146 {[%emt 0:14:28]} ({Predecessor:} 16. Ra3 e6 17. dxc4 Qxd1 18. Rxd1 Rxc4 19. Ng4 Bh8 20. Bf3 f5 21. Ne3 Rxc1 22. Rxc1 Bxb2 {½-½ Ding,L (2808)-So,W (2773) Chess.com Rapid Losers 2022 (4.2)}) 16... Qd7 {[%emt 0:06:43]} 17. dxc4 {[%emt 0:05:58]} Rxc4 {[%emt 0:01:09]} 18. Qxd7 $1 {[%emt 0:09:48]} Nxd7 {[%emt 0:01:06]} 19. Bf3 {[%emt 0:00:01]} Rxa4 {[%emt 0:06:37]} 20. Ng4 {[%emt 0:00:02]} Nb3 {[%emt 0:02:04]} 21. Rd1 {[%emt 0:03:27]} Ne5 {[%emt 0:07:57]} 22. Nxe5 {[%emt 0:05:40]} (22. Nxf6+ exf6 23. Be3 (23. Bxb7 Rb4 $14) 23... Nc4) 22... Bxe5 {[%emt 0:00:08]} 23. Bg5 {[%emt 0:00:06]} Nd4 {[%emt 0:07:16]} (23... e6 $11) 24. Bxb7 {[%emt 0:02:10]} (24. Bxe7 $14 Re8 25. Bc5) 24... Rb8 $11 {[%emt 0:00:25]} 25. Bf3 {[%emt 0:01:59]} f6 {[%emt 0:03:39]} (25... Nxf3+ 26. exf3 Bd6 27. Kg2) 26. Be3 {[%emt 0:00:05]} Nxf3+ {[%emt 0:03:51]} 27. exf3 {[%emt 0:00:03]} Bd6 {[%emt 0:00:27]} 28. Ra1 {[%emt 0:07:42]} Rxa1 {[%emt 0:00:19]} 29. Rxa1 {[%emt 0:00:02]} Rxb2 {[%emt 0:00:11]} 30. Rxa7 {[%emt 0:00:33]} g5 {[%emt 0:00:38]} 31. Ra8+ {[%emt 0:10:41]} Kf7 {[%emt 0:00:21]} 32. f4 {[%emt 0:00:26]} gxf4 {[%emt 0:05:37]} 33. gxf4 {[%emt 0:00:02]} Kg6 {[%emt 0:04:46]} (33... f5 $15) 34. Rg8+ {[%emt 0:01:24]} (34. f5+ $1 $11 Kxf5 35. Rh8) 34... Kxh6 $15 {[%emt 0:00:23]} 35. f5+ {[%emt 0:00:02]} Kh5 {[%emt 0:00:10]} 36. Rg7 {[%emt 0:00:02]} Rb5 {[%emt 0:01:19]} 37. Rxh7+ {[%emt 0:00:20]} Kg4 {[%emt 0:00:06]} 38. Kg2 {[%emt 0:00:01]} Rb2 {[%emt 0:00:37]} (38... Rxf5 $2 {too greedy.} 39. f3+ Rxf3 40. Rg7+ Kf5 41. Kxf3 $18) 39. Rh8 {[%emt 0:00:26]} Kxf5 {[%emt 0:00:23]} 40. Bc5 {[%emt 0:00:05]} Rb7 {[%emt 0:07:44]} (40... Bxc5 $5 41. Rh5+ $8 Kf4 42. Rxc5 e5 $11) 41. Bxd6 {[%emt 0:05:47]} exd6 {[%emt 0:00:38]} 42. Rd8 {[%emt 0:00:01]} Ke6 {[%emt 0:00:39]} 43. Re8+ {[%emt 0:04:53]} Re7 {[%emt 0:01:56]} 44. Ra8 {[%emt 0:02:23] [#]} (44. Rd8 $1 $15) 44... d5 $1 $17 {[%emt 0:02:35]} 45. Kf3 {[%emt 0:00:02]} Ke5 {[%emt 0:03:19]} 46. Ra1 $2 {[%emt 0:09:10][%mdl 8192]} (46. Ra6 $17 {is more resistant.}) 46... Re6 $2 {[%emt 0:03:08]} ({Black should try} 46... Rc7 $19 {Strongly threatening ...Rc3+.} 47. Re1+ Kd6) 47. Ra4 $2 {[%emt 0:10:32][%mdl 8192] [#]} ({Better is} 47. Re1+ $15 Kd6 48. Ra1) 47... Rb6 $1 $19 {[%emt 0:00:28]} 48. Ke2 $2 {[%emt 0:03:43]} (48. Ra3 Kd4 49. Ke2) 48... d4 $19 {[%emt 0:02:02]} 49. f3 {[%emt 0:00:42]} f5 {[%emt 0:02:40]} 50. Ra5+ {[%emt 0:00:31]} Kf4 {[%emt 0:00:11]} 51. Rd5 {[%emt 0:00:03]} Rb2+ {[%emt 0:01:14]} 52. Ke1 {[%emt 0:00:42]} Rh2 {[%emt 0:02:01]} ({And not} 52... Kxf3 53. Rxf5+ Ke3 54. Kd1 $11) 53. Kf1 {[%emt 0:00:31]} Kxf3 {[%emt 0:02:09]} 54. Rxf5+ {[%emt 0:00:17]} Ke3 {[%emt 0:00:06]} 55. Re5+ {[%emt 0:00:06]} Kd2 {[%emt 0:00:17]} 56. Ra5 {[%emt 0:00:05]} Rh1+ {[%emt 0:00:18]} 57. Kf2 {[%emt 0:00:03]} d3 {[%emt 0:00:23]} 58. Ra8 {[%emt 0:01:02]} Rh7 {[%emt 0:01:13]} 59. Ra2+ {[%emt 0:00:05]} Kc3 {[%emt 0:00:07]} 60. Ra3+ {[%emt 0:00:04]} Kc2 {[%emt 0:00:07]} 61. Ra2+ {[%emt 0:00:17]} Kb3 {[%emt 0:00:12]} 62. Ra8 {[%emt 0:00:04]} Re7 {[%emt 0:00:14]} 0-1

[Event "45th FIDE Olympiad 2024"]
[Site "Budapest"]
[Date "2024.09.16"]
[Round "6.1"]
[White "Anquandah, Francis Eric"]
[Black "Pace, Colin"]
[Result "0-1"]
[WhiteElo "1941"]
[BlackElo "2186"]
[PlyCount "98"]
[EventDate "2024.09.05"]
[EventType "team-tourn"]
[EventCountry "HUN"]
[WhiteTeam "Ghana"]
[BlackTeam "Malta"]
[WhiteTeamCountry "GHA"]
[BlackTeamCountry "MLT"]
[TimeControl "40/5400+30:1800+30"]

1. e4 c5 2. Nf3 Nc6 3. d4 cxd4 4. Nxd4 g6 5. Nxc6 bxc6 6. Qd4 Nf6 7. e5 Nd5 8. Bc4 Qb6 9. Qxb6 Nxb6 10. Bd3 Bg7 11. f4 O-O 12. O-O d6 13. exd6 exd6 14. c3 Nd7 15. Be3 Re8 16. Kf2 Nf6 17. h3 Nd5 18. Bc1 Bh6 19. g3 Bg7 20. Rh1 Be6 21. Nd2 Nxc3 22. bxc3 Bxc3 23. Rb1 Bxa2 24. Rb7 Bd4+ 25. Kg2 Bd5+ 26. Nf3 a5 27. Rd1 c5 28. Rd7 Bb3 29. Re1 Rxe1 30. Nxe1 a4 31. Ba3 Re8 32. Kf1 Be6 33. Rxd6 Bxh3+ 34. Ng2 Re3 35. Rd5 Rf3+ 36. Ke2 Bxg2 37. Rd8+ Kg7 38. Rc8 Rxg3 39. Bxc5 Bxc5 40. Rxc5 Bf1+ 41. Kxf1 Rxd3 42. Ke2 Rb3 43. Ra5 a3 44. Kd2 h5 45. Kc2 Rf3 46. Ra4 h4 47. f5 h3 48. Rg4 Rf2+ 49. Kb1 h2 {0-} 0-1

[Event "45th FIDE Olympiad 2024"]
[Site "Budapest"]
[Date "2024.09.16"]
[Round "6.2"]
[White "Nguyen, Ngoc Truong Son"]
[Black "Wei, Yi"]
[Result "1/2-1/2"]
[ECO "D36"]
[WhiteElo "2633"]
[BlackElo "2762"]
[Annotator "TA"]
[PlyCount "29"]
[EventDate "2024.09.05"]
[EventType "team-tourn"]
[EventCountry "HUN"]
[SourceTitle "playchess.com"]
[Source "ChessBase"]
[SourceQuality "1"]
[WhiteTeam "Vietnam"]
[BlackTeam "China"]
[WhiteTeamCountry "VIE"]
[BlackTeamCountry "CHN"]
[TimeControl "40/5400+30:1800+30"]

{[%evp 24,29,0,0,0,0,0,0]} 1. d4 {[%emt 0:00:15]} Nf6 {[%emt 0:00:14]} 2. c4 {[%emt 0:00:18]} e6 {[%emt 0:00:11]} 3. Nf3 {[%emt 0:00:19]} d5 {[%emt 0:00:12]} 4. Nc3 {[%emt 0:00:24]} c6 {[%emt 0:00:21]} 5. cxd5 {[%emt 0:01:28]} exd5 {[%emt 0:00:14]} 6. Qc2 {[%emt 0:00:19]} g6 {[%emt 0:05:19]} 7. Bg5 {[%emt 0:00:44]} Be7 {[%emt 0:01:35]} 8. e3 {[%emt 0:04:28]} Bf5 {[%emt 0:00:12]} 9. Bd3 {[%emt 0:00:57]} Bxd3 {[%emt 0:00:12]} 10. Qxd3 {[%emt 0:00:05]} Nbd7 {[%emt 0:00:05]} 11. Bh6 {[%emt 0:03:44]} Ng4 {[%emt 0:01:59]} 12. Bf4 {[%emt 0:00:29]} Ngf6 {[%emt 0:01:29]} 13. Bh6 {[%emt 0:03:06] The position is equal.} Ng4 {[%emt 0:00:07]} 14. Bf4 {[%emt 0:00:03]} Ngf6 {[%emt 0:00:16]} 15. Bh6 {[%emt 0:00:06] A rather calm draw.   Weighted Error Value: White=0.00 (flawless) /Black=0.00 (flawless) .  OK:         	White=2     	---} 1/2-1/2

[Event "45th FIDE Olympiad 2024"]
[Site "Budapest"]
[Date "2024.09.16"]
[Round "6.2"]
[White "Darmanin, Jake"]
[Black "Anhwere, Bernard"]
[Result "1/2-1/2"]
[WhiteElo "2119"]
[BlackElo "1893"]
[PlyCount "112"]
[EventDate "2024.09.05"]
[EventType "team-tourn"]
[EventCountry "HUN"]
[WhiteTeam "Malta"]
[BlackTeam "Ghana"]
[WhiteTeamCountry "MLT"]
[BlackTeamCountry "GHA"]
[TimeControl "40/5400+30:1800+30"]

1. e4 c5 2. Nf3 d6 3. c3 Nf6 4. h3 g6 5. Bd3 Bg7 6. Bc2 O-O 7. O-O e5 8. d3 h6 9. Nbd2 Be6 10. Qe2 Nc6 11. Rd1 b5 12. Nf1 a6 13. Ng3 Qc7 14. Be3 Nd7 15. Qd2 Kh7 16. Rac1 Nb6 17. Bb1 Qe7 18. b3 b4 19. cxb4 Nxb4 20. a3 Nc6 21. b4 Nd4 22. Bxd4 cxd4 23. Rc6 Na4 24. Ne2 Qd7 25. Rcc1 f6 26. Ba2 Bxa2 27. Qxa2 Rfc8 28. Qb3 h5 29. Nd2 Bh6 30. Rxc8 Rxc8 31. Nc4 Bf8 32. f4 Rc7 33. Rf1 Kg7 34. Rf3 Qb5 35. h4 Nc5 36. Qd1 Nxe4 37. fxe5 dxe5 38. Qf1 Rxc4 39. dxc4 Qxc4 40. Ng3 Qxf1+ 41. Nxf1 Nc3 42. Kf2 e4 43. Rxc3 dxc3 44. Ne3 a5 45. bxa5 Bxa3 46. a6 Bc5 47. Ke2 Kf7 48. Nd5 Ke6 49. Nxc3 Ke5 50. g3 g5 51. hxg5 fxg5 52. Nd1 h4 53. gxh4 gxh4 54. Nf2 Kf5 55. Kf1 e3 56. Nd1 Kf4 1/2-1/2

[Event "45th FIDE Olympiad 2024"]
[Site "Budapest"]
[Date "2024.09.16"]
[Round "6.3"]
[White "Yu, Yangyi"]
[Black "Le, Tuan Minh"]
[Result "1/2-1/2"]
[ECO "D45"]
[WhiteElo "2703"]
[BlackElo "2564"]
[Annotator "TA"]
[PlyCount "104"]
[EventDate "2024.09.05"]
[EventType "team-tourn"]
[EventCountry "HUN"]
[SourceTitle "playchess.com"]
[Source "ChessBase"]
[SourceQuality "1"]
[WhiteTeam "China"]
[BlackTeam "Vietnam"]
[WhiteTeamCountry "CHN"]
[BlackTeamCountry "VIE"]
[TimeControl "40/5400+30:1800+30"]

{[%evp 23,104,18,16,10,30,8,41,13,12,21,25,0,0,0,0,-33,-24,-33,-33,-29,-38,-37,-30,-36,-34,-32,0,0,0,-13,0,0,0,0,0,0,0,0,0,4,0,0,32,33,33,33,33,33,50,7,44,37,37,37,37,37,37,37,37,37,37,37,37,23,37,37,37,37,37,0,0,0,0,0,0,0,0,0,0,0,0,0,18]} 1. c4 {[%emt 0:00:04]} c6 {[%emt 0:00:34]} 2. Nf3 {[%emt 0:00:18]} Nf6 {[%emt 0:00:05]} 3. d4 {[%emt 0:00:49]} d5 {[%emt 0:00:22]} 4. Nc3 {[%emt 0:00:48]} e6 {[%emt 0:00:05]} 5. e3 {[%emt 0:03:02]} a6 {[%emt 0:01:09]} 6. b3 {[%emt 0:10:10]} Bb4 {[%emt 0:00:52]} 7. Bd2 {[%emt 0:00:13]} Nbd7 {[%emt 0:00:24]} 8. Bd3 {[%emt 0:00:16]} O-O {[%emt 0:00:53]} 9. O-O {[%emt 0:00:06] D45: Semi-Slav: 5 e3.} Bd6 {[%emt 0:00:23]} 10. Rc1 {[%emt 0:11:52]} Re8 {[%emt 0:05:33]} 11. h3 {[%emt 0:02:50]} e5 {[%emt 0:09:42]} 12. dxe5 {[%emt 0:01:25]} Nxe5 {[%emt 0:00:13]} 13. Nxe5 {[%emt 0:00:07]} Bxe5 {[%emt 0:02:27]} 14. cxd5 {[%emt 0:00:08]} Bb8 {[%emt 0:17:22]} 15. Qf3 {[%emt 0:13:35]} cxd5 {[%emt 0:06:37]} 16. Rfd1 {[%emt 0:08:37]} Qd6 {[%emt 0:10:32]} 17. Qf4 {[%emt 0:00:48]} Qe7 {[%emt 0:01:12]} 18. Qh4 {[%emt 0:01:02]} Qe5 {[%emt 0:01:41]} 19. f4 $146 {[%emt 0:11:31]} ({Predecessor:} 19. g3 Bf5 20. Be1 Ba7 21. Bxf5 Qxf5 22. g4 Qf3 23. g5 {½-½ Maekelae,A (2316)-Csiba,T (2441) WS TT/6/21/1 email 2021}) 19... Qd6 {[%emt 0:05:24]} 20. Be1 {[%emt 0:09:05]} h6 {[%emt 0:11:12]} (20... Rxe3 $2 {too greedy.} 21. Nxd5 Rxe1+ 22. Qxe1 Ba7+ 23. Kh1 Bxh3 24. Nxf6+ Qxf6 25. gxh3 $18) 21. Bf2 {[%emt 0:00:47]} Bd7 {[%emt 0:01:52]} 22. Bb1 {[%emt 0:03:43]} Qe6 {[%emt 0:02:23]} 23. Re1 {[%emt 0:07:53]} Bc6 {[%emt 0:03:39]} 24. Ne2 {[%emt 0:00:01]} Ba7 {[%emt 0:00:36]} 25. Nd4 {[%emt 0:00:26]} Bxd4 {[%emt 0:01:10]} 26. f5 {[%emt 0:00:21]} Qd7 {[%emt 0:01:23]} 27. exd4 {[%emt 0:01:00]} Rxe1+ {[%emt 0:02:37]} 28. Rxe1 {[%emt 0:00:10]} Re8 {[%emt 0:00:04]} 29. Re5 {[%emt 0:02:57]} Ne4 {[%emt 0:00:41]} 30. Bxe4 {[%emt 0:00:53]} dxe4 {[%emt 0:01:14]} 31. f6 {[%emt 0:00:09]} (31. Rxe8+ Qxe8 32. Be3 f6 $15) 31... Rxe5 {[%emt 0:00:21]} 32. dxe5 {[%emt 0:00:02]} Qd2 {[%emt 0:08:14]} 33. Qg4 {[%emt 0:05:29]} Qg5 {[%emt 0:00:07]} 34. Qxg5 {[%emt 0:01:20]} hxg5 {[%emt 0:00:30]} 35. Be3 {[%emt 0:00:13]} g4 {[%emt 0:00:15]} 36. h4 {[%emt 0:00:25]} g6 {[%emt 0:00:07]} 37. Kf2 {[%emt 0:03:26]} Kf8 {[%emt 0:01:42]} 38. Kg3 {[%emt 0:01:59]} Bd7 $1 {[%emt 0:00:04]} 39. Kf4 {[%emt 0:00:30]} Ke8 {[%emt 0:00:07]} 40. g3 {[%emt 0:00:46]} Be6 {[%emt 0:00:09]} 41. Kxe4 {[%emt 0:30:12]} Kd7 {[%emt 0:30:04]} 42. Kd4 {[%emt 0:00:04]} Kc6 {[%emt 0:00:04]} 43. Bh6 {[%emt 0:00:17]} Kb5 {[%emt 0:00:51]} 44. Bf8 {[%emt 0:00:27]} Kc6 {[%emt 0:00:06]} 45. Be7 {[%emt 0:01:15]} Kb5 {[%emt 0:00:04]} 46. a4+ {[%emt 0:00:49]} Kc6 {[%emt 0:00:18]} 47. b4 {[%emt 0:00:05]} Bf5 {[%emt 0:00:46]} 48. a5 {[%emt 0:00:21]} Be6 {[%emt 0:00:04]} 49. Bf8 {[%emt 0:00:00]} Kb5 {[%emt 0:00:00]} 50. Be7 {[%emt 0:00:00]} Kc6 {[%emt 0:00:00]} 51. Bf8 {[%emt 0:00:00]} Kb5 {[%emt 0:00:00]} 52. Be7 {[%emt 0:00:00]} Kc6 {[%emt 0:00:00]} 1/2-1/2

[Event "45th FIDE Olympiad 2024"]
[Site "Budapest"]
[Date "2024.09.16"]
[Round "6.3"]
[White "Fomevor, Cephas Clinton"]
[Black "Novak, Attila Robert"]
[Result "0-1"]
[WhiteElo "1873"]
[BlackElo "2135"]
[PlyCount "66"]
[EventDate "2024.09.05"]
[EventType "team-tourn"]
[EventCountry "HUN"]
[WhiteTeam "Ghana"]
[BlackTeam "Malta"]
[WhiteTeamCountry "GHA"]
[BlackTeamCountry "MLT"]
[TimeControl "40/5400+30:1800+30"]

1. d4 d5 2. c4 dxc4 3. e3 a6 4. Bxc4 e6 5. Nf3 c5 6. O-O Nf6 7. Qc2 b5 8. Be2 Nbd7 9. Rd1 Bb7 10. a3 Rc8 11. dxc5 Bxc5 12. Qd2 Ne4 13. Qe1 Qf6 14. Nbd2 Nb6 15. Nb3 Be7 16. Nbd4 O-O 17. Nd2 e5 18. N4f3 Na4 19. Bd3 Nec5 20. Bc2 Rfd8 21. e4 Nd3 22. Bxd3 Rxd3 23. Qe2 Rcd8 24. Ne1 R3d7 25. Nc2 Nc5 26. Rf1 Qg6 27. f3 Bg5 28. Ne3 Qb6 29. Kh1 Nd3 30. Nd5 Bxd5 31. Nc4 Bxc4 32. Bxg5 f6 33. Be3 Qe6 {0-} 0-1

[Event "45th FIDE Olympiad 2024"]
[Site "Budapest"]
[Date "2024.09.16"]
[Round "6.4"]
[White "Tran, Tuan Minh"]
[Black "Wang, Yue"]
[Result "0-1"]
[ECO "D38"]
[WhiteElo "2434"]
[BlackElo "2637"]
[Annotator "TA"]
[PlyCount "70"]
[EventDate "2024.09.05"]
[EventType "team-tourn"]
[EventCountry "HUN"]
[SourceTitle "playchess.com"]
[Source "ChessBase"]
[SourceQuality "1"]
[WhiteTeam "Vietnam"]
[BlackTeam "China"]
[WhiteTeamCountry "VIE"]
[BlackTeamCountry "CHN"]
[TimeControl "40/5400+30:1800+30"]

{[%evp 14,70,14,10,21,19,10,5,15,16,11,18,10,0,4,0,0,0,0,4,6,-4,-2,-4,-20,-24,-7,-3,0,-9,0,-83,-62,-61,-43,-102,-39,-40,-18,-31,-40,-55,-52,-88,-74,-116,-120,-238,-245,-229,-237,-351,-334,-346,-358,-912,-919,-965,-962]} 1. d4 {[%emt 0:00:25]} Nf6 {[%emt 0:00:07]} 2. c4 {[%emt 0:00:32]} e6 {[%emt 0:00:08]} 3. Nf3 {[%emt 0:00:08]} d5 {[%emt 0:00:38]} 4. Nc3 {[%emt 0:00:07]} Bb4 {[%emt 0:00:09]} 5. Bg5 {[%emt 0:00:15]} h6 {[%emt 0:00:53]} 6. Bxf6 {[%emt 0:00:13]} Qxf6 {[%emt 0:00:06]} 7. Qa4+ {[%emt 0:00:03]} Nc6 {[%emt 0:00:29]} 8. e3 {[%emt 0:00:04]} O-O {[%emt 0:01:08]} 9. Bd3 {[%emt 0:00:05]} dxc4 {[%emt 0:03:54]} 10. Bxc4 {[%emt 0:00:04]} Rd8 {[%emt 0:03:31] The position is equal.} 11. O-O {[%emt 0:00:56]} Bxc3 {[%emt 0:00:11]} 12. bxc3 {[%emt 0:00:08]} Bd7 {[%emt 0:00:06][%cal Oc6d4] ...Nxd4! would now be deadly.} 13. Qc2 {[%emt 0:08:31]} Na5 {[%emt 0:07:16]} 14. Bd3 {[%emt 0:02:24]} c5 {[%emt 0:03:35]} 15. Ne5 {[%emt 0:00:35]} (15. dxc5 Qe7 $15) 15... Be8 {[%emt 0:12:17]} 16. f4 {[%emt 0:10:48]} Nc6 {[%emt 0:00:31]} 17. Qb2 {[%emt 0:04:48]} (17. dxc5 $2 Nxe5 18. fxe5 Qxe5 19. Bh7+ Kh8 $19) 17... Qe7 {[%emt 0:01:44]} 18. Rae1 {[%emt 0:11:43]} Rac8 {[%emt 0:07:09]} 19. Ng4 {[%emt 0:05:38]} f5 {[%emt 0:08:16]} 20. Nf2 {[%emt 0:00:44]} Qc7 {[%emt 0:03:07]} 21. Bb1 {[%emt 0:13:03]} Na5 {[%emt 0:05:24]} 22. g4 {[%emt 0:06:04]} (22. d5 $11 {keeps the balance.}) 22... Nc4 {[%emt 0:10:46]} 23. Qe2 {[%emt 0:01:48]} Nd6 {[%emt 0:00:54] Black is more active.} 24. Bd3 {[%emt 0:06:06]} (24. Rc1 $15) 24... Qa5 {[%emt 0:02:31]} (24... cxd4 $17 25. cxd4 Qa5) 25. Rc1 $15 {[%emt 0:06:49]} cxd4 {[%emt 0:05:20]} 26. exd4 {[%emt 0:02:52]} Bf7 $36 {[%emt 0:06:03][%mdl 2048] Black is more active.} (26... Qd5 {keeps more tension.} 27. Rfe1 Bd7 28. Nd1 fxg4 29. Qxg4 e5) 27. c4 {[%emt 0:01:01]} Ne8 {[%emt 0:04:57]} 28. gxf5 {[%emt 0:01:15]} exf5 {[%emt 0:00:04]} 29. d5 {[%emt 0:01:12]} Nd6 {[%emt 0:00:29]} 30. Qe5 {[%emt 0:01:13] [#]} (30. Qe3 $17 {was worth a try.} b6 (30... Qxa2 31. c5 $15) 31. Qd4) 30... Qc5 $1 $19 {[%emt 0:00:37]} ({Weaker is} 30... Qxa2 31. c5 Ne4 32. Bxe4 fxe4 33. d6 $11) 31. Qb2 {[%emt 0:08:22]} Re8 {[%emt 0:00:38]} ({Not} 31... b5 32. cxb5 Qxd5 33. Rxc8 Rxc8 34. Qe5 $17) 32. Kh1 {[%emt 0:01:09]} (32. Qb1 {might work better.}) 32... Bh5 {[%emt 0:01:47]} 33. Nd1 {[%emt 0:02:21]} b5 {[%emt 0:01:00][%cal Rb5c4]} 34. Qg2 $2 {[%emt 0:00:19]} (34. Qf2) 34... bxc4 {[%emt 0:01:19] [#] And now ...Bf7 would win.} 35. Nb2 {[%emt 0:03:48]} Qd4 {[%emt 0:00:39] Weighted Error Value: White=0.40/Black=0.06 (flawless) .  Mistake:       	White=5     	Black=1      Inaccurate:     	White=2     	---        OK:         	White=9     	Black=15} 0-1

[Event "45th FIDE Olympiad 2024"]
[Site "Budapest"]
[Date "2024.09.16"]
[Round "6.4"]
[White "Mizzi, Jack"]
[Black "Frempong-Smart, Daniel"]
[Result "1/2-1/2"]
[WhiteElo "2053"]
[BlackElo "1863"]
[PlyCount "154"]
[EventDate "2024.09.05"]
[EventType "team-tourn"]
[EventCountry "HUN"]
[WhiteTeam "Malta"]
[BlackTeam "Ghana"]
[WhiteTeamCountry "MLT"]
[BlackTeamCountry "GHA"]
[TimeControl "40/5400+30:1800+30"]

1. d4 d5 2. c4 c6 3. Nf3 Nf6 4. Nc3 a6 5. e3 b5 6. b3 Bg4 7. Be2 e6 8. Bd2 Bd6 9. Qc2 Nbd7 10. h3 Bf5 11. Bd3 b4 12. Na4 Ne4 13. c5 Nxd2 14. Qxd2 Bxd3 15. cxd6 Bb5 16. Nc5 a5 17. a4 Nxc5 18. dxc5 Ba6 19. Ne5 Bb7 20. O-O f6 21. Nf3 O-O 22. Rfe1 e5 23. e4 d4 24. Nh4 g6 25. f4 Qd7 26. fxe5 fxe5 27. Qg5 Qg7 28. Nf3 Rae8 29. Rad1 Bc8 30. Qg3 Qf6 31. Kh2 Qf4 32. Qxf4 Rxf4 33. Kg3 Rf6 34. h4 h6 35. Rf1 Kg7 36. Nh2 Ref8 37. Rxf6 Rxf6 38. Nf3 Rf4 39. Nxe5 Rxe4 40. d7 Re3+ 41. Kh2 Bxd7 42. Nxd7 Rxb3 43. Rxd4 Ra3 44. Ne5 b3 45. Rd7+ Kf6 46. Nxc6 Rxa4 47. Rb7 Rxh4+ 48. Kg3 Rc4 49. Nxa5 Rxc5 50. Nxb3 Rc3+ 51. Kh2 Rc6 52. Nd4 Rd6 53. Nf3 h5 54. Rb5 Ra6 55. Rc5 Rb6 56. Nd4 Ra6 57. Rc6+ Rxc6 58. Nxc6 g5 59. Kg3 Kf5 60. Nd4+ Ke4 61. Nf3 Kf5 62. Kf2 Kf4 63. Nd4 h4 64. Ne2+ Ke4 65. Kg1 Ke3 66. Nc3 g4 67. Kh2 Kf4 68. Nd5+ Ke5 69. Ne3 Kf4 70. Nf1 Ke4 71. Nd2+ Kf4 72. Nc4 Ke4 73. Kg1 Kd4 74. Nd2 Kd3 75. Nb3 Ke3 76. Na5 Kf4 77. Nc4 h3 1/2-1/2